bitfinex/quotes_ETHUSD_20250824
["timestamp","ask_amount","ask_price","bid_price","bid_amount"]
[1756041512674,0.002,4779.1,4779.0,5.23268802]
[1756041512875,0.002,4780.1,4780.0,2.0920502]
[1756041513170,0.002,4780.1,4780.0,7.71755522]
[1756041513472,0.002,4780.1,4780.0,8.17175522]
[1756041513669,0.002,4780.1,4780.0,8.25560922]
[1756041514672,0.002,4780.1,4780.0,9.02040922]
[1756041516865,0.02000001,4780.8,4780.7,2.75174388]
[1756041517052,0.02000001,4780.8,4780.7,7.04239955]
[1756041517370,0.02000001,4780.8,4780.7,7.60139955]
[1756041517573,0.02000001,4780.8,4780.7,7.68523255]
[1756041520656,0.02000001,4780.8,4780.7,7.23103255]
[1756041521474,0.02000001,4780.8,4780.7,7.68523255]
[1756041521681,0.02000001,4780.8,4780.7,7.23103255]
[1756041522180,0.02000001,4780.8,4780.7,7.68523255]
[1756041523279,1e-08,4781.2,4781.1,2.75156888]
[1756041523579,1e-08,4781.2,4781.1,9.65865389]
[1756041523744,1e-08,4781.2,4781.1,10.21765389]
[1756041524560,1e-08,4781.2,4781.1,10.30147189]
[1756041526095,0.002,4781.7,4781.6,0.66]
[1756041526381,0.002,4781.7,4781.6,4.5701]
[1756041526584,0.002,4781.7,4781.6,8.04802192]
[1756041526783,0.002,4781.7,4781.6,8.13182692]
[1756041527659,1e-08,4781.7,4781.6,8.13182692]
[1756041529303,1e-08,4781.7,4781.6,11.13182692]
[1756041530598,1e-08,4781.8,4781.7,5.75130643]
[1756041530804,1e-08,4781.8,4781.7,7.78986152]
[1756041531087,1e-08,4781.8,4781.7,10.45206152]
[1756041532201,0.02,4782.8,4782.7,2.75086917]
[1756041532400,0.02,4782.8,4782.7,8.18716917]
[1756041532609,0.02,4782.8,4782.7,8.29196917]
[1756041532805,0.02,4782.8,4782.7,9.33025981]
[1756041532975,0.02,4782.8,4782.7,10.21045981]
[1756041533161,0.02,4782.8,4782.7,9.77975981]
[1756041533586,0.02,4782.8,4782.7,10.21045981]
[1756041534682,0.02,4782.8,4782.7,9.77975981]
[1756041534883,0.02,4782.8,4782.7,10.21045981]
[1756041535817,1e-08,4782.8,4782.7,12.41845981]
[1756041536016,1e-08,4782.8,4782.7,15.41845981]
[1756041536410,1e-08,4782.8,4782.7,11.89945981]
[1756041536710,1e-08,4782.8,4782.7,15.41745981]
[1756041536911,1e-08,4782.8,4782.7,11.46875981]
[1756041537125,1e-08,4782.8,4782.7,14.98675981]
[1756041537335,1e-08,4782.8,4782.7,15.41745981]
[1756041538336,1e-08,4782.8,4782.7,14.98675981]
[1756041539852,0.74650001,4782.8,4782.7,14.67745981]
[1756041540002,0.74650001,4782.8,4782.7,7.77116917]
[1756041541451,0.74650001,4782.8,4782.7,4.25316917]
[1756041541672,0.74650001,4782.8,4782.7,7.77116917]
[1756041542000,0.74650001,4782.8,4782.7,8.43116917]
[1756041543344,0.29700001,4782.8,4782.7,8.43116917]
[1756041543549,1e-08,4782.8,4782.7,9.79267981]
[1756041544044,0.29700001,4782.8,4782.7,9.48337981]
[1756041544761,1e-08,4782.8,4782.7,9.79267981]
[1756041545441,1e-08,4782.8,4782.7,9.48337981]
[1756041546838,0.29700001,4782.8,4782.7,9.48337981]
[1756041547038,1e-08,4782.8,4782.7,9.48337981]
[1756041548061,1e-08,4782.8,4782.7,9.79267981]
[1756041548976,1e-08,4782.8,4782.7,9.48337981]
[1756041549179,1e-08,4782.8,4782.7,15.42737981]
[1756041549866,1e-08,4783.4,4783.3,5.7506069]
[1756041550165,1e-08,4783.4,4783.3,10.85650441]
[1756041550587,1e-08,4783.8,4783.7,2.75043209]
[1756041550890,1e-08,4783.8,4783.7,11.18473209]
[1756041551241,1e-08,4783.8,4783.7,11.73947709]
[1756041552290,0.29700001,4783.8,4783.7,11.32537709]
[1756041552567,0.74650001,4783.8,4783.7,6.17669242]
[1756041552785,0.74650001,4783.8,4783.7,8.37537709]
[1756041552979,0.74650001,4783.8,4783.7,4.14837709]
[1756041553392,0.74650001,4783.8,4783.7,7.71537709]
[1756041553872,0.74650001,4783.8,4783.7,4.14837709]
[1756041554099,0.74650001,4783.8,4783.7,7.71537709]
[1756041555477,0.29700001,4783.8,4783.7,7.71537709]
[1756041555678,0.74650001,4783.8,4783.7,7.71337709]
[1756041556293,0.74650001,4783.8,4783.7,4.14837709]
[1756041556503,0.74650001,4783.8,4783.7,7.71337709]
[1756041556704,0.74650001,4783.8,4783.7,4.14837709]
[1756041557212,0.74650001,4783.8,4783.7,5.172]
[1756041557789,0.74650001,4783.8,4783.7,1.608]
[1756041557992,1.31692675,4783.8,4783.7,1.608]
[1756041558206,1.31692675,4783.8,4783.7,5.172]
[1756041559132,1.31692675,4783.8,4783.7,1.608]
[1756041559301,1.31692675,4783.8,4783.7,5.172]
[1756041559804,1.31692675,4783.8,4783.7,1.608]
[1756041559984,1.31692675,4783.8,4783.7,5.171]
[1756041560695,1.31692675,4783.8,4783.7,5.173]
[1756041561494,1.31692675,4783.8,4783.7,1.608]
[1756041561700,1.31692675,4783.8,4783.7,5.171]
[1756041562789,1.31692675,4783.8,4782.8,0.02]
[1756041562790,3.40735074,4783.8,4782.8,1.628]
[1756041562985,0.56276849,4783.6,4782.8,1.628]
[1756041563215,3.13363611,4783.7,4782.8,1.628]
[1756041563216,0.56276849,4783.4,4782.8,1.628]
[1756041563458,0.3011,4782.9,4782.8,1.628]
[1756041563724,0.75180613,4782.9,4782.8,5.172]
[1756041563911,2.11707205,4782.9,4782.8,5.172]
[1756041564116,1.77655125,4782.9,4782.8,7.26282545]
[1756041564293,1.21260613,4782.9,4782.8,7.26282545]
[1756041564486,0.45070613,4783.0,4782.9,2.09078174]
[1756041564703,0.45070613,4783.0,4782.9,5.95838174]
[1756041564909,1e-08,4783.8,4783.7,2.09043209]
[1756041565103,0.75200575,4783.8,4783.7,7.26243209]
[1756041565321,1.21280575,4783.8,4783.7,7.26243209]
[1756041565840,0.45090575,4783.8,4783.7,7.26243209]
[1756041566436,0.76190001,4783.8,4783.7,7.26243209]
[1756041566840,0.76190001,4783.8,4783.7,1.608]
[1756041567027,0.76190001,4783.8,4783.7,5.172]
[1756041567028,1.33408633,4783.8,4783.7,5.172]
[1756041567544,0.88318059,4783.8,4783.7,5.172]
[1756041567722,0.88318059,4783.8,4783.7,1.608]
[1756041567928,1.33408633,4783.8,4783.7,5.172]
[1756041568124,0.88318059,4783.8,4783.7,5.173]
[1756041568510,0.88318059,4783.8,4783.7,1.608]
[1756041568916,0.88318059,4783.8,4782.7,1.608]
[1756041568917,3.0,4783.7,4782.7,1.608]
[1756041569116,0.3011,4782.8,4782.7,1.608]
[1756041569319,0.7619,4782.8,4782.7,5.173]
[1756041569853,0.45090574,4782.8,4782.7,5.173]
[1756041570050,0.91170574,4783.1,4782.7,5.173]
[1756041570218,0.45090574,4783.3,4782.7,5.173]
[1756041570534,0.3011,4782.8,4782.7,5.173]
[1756041570736,5.85272545,4782.8,4782.7,1.608]
[1756041570913,5.85272545,4782.8,4782.6,0.001]
[1756041570914,2.09086917,4782.7,4782.6,0.001]
[1756041571113,3.86762003,4782.7,4782.6,0.001]
[1756041571420,3.86762003,4782.7,4782.2,0.001]
[1756041571421,2.09104405,4782.3,4782.2,0.001]
[1756041571616,3.75200574,4782.3,4782.2,0.001]
[1756041571842,6.30384979,4782.3,4782.2,0.001]
[1756041573864,6.96384979,4782.3,4782.2,0.001]
[1756041574066,10.53484979,4782.3,4782.2,0.001]
[1756041574241,12.01831071,4782.3,4782.2,0.001]
[1756041575475,7.78731071,4782.3,4782.2,0.001]
[1756041575769,8.34882633,4782.3,4782.2,0.001]
[1756041575958,7.78731071,4782.3,4782.2,0.001]
[1756041578646,12.01631071,4782.3,4782.2,0.001]
[1756041579675,8.44731071,4782.3,4782.2,0.001]
[1756041579866,12.01731071,4782.3,4782.2,0.001]
[1756041580794,32.09108778,4782.2,4782.1,1e-08]
[1756041581076,5.7512627,4781.8,4781.7,1e-08]
[1756041581286,10.07226844,4781.8,4781.7,1e-08]
[1756041581448,3.66,4781.7,4781.1,1e-08]
[1756041581644,1.52160111,4781.2,4781.1,1e-08]
[1756041581864,9.13378057,4781.2,4781.1,1e-08]
[1756041582180,12.13701145,4781.2,4781.1,1e-08]
[1756041582996,12.46444854,4781.2,4781.1,1e-08]
[1756041583362,11.90394743,4781.2,4781.1,1e-08]
[1756041584365,18.4669474,4781.2,4781.1,1e-08]
[1756041586298,13.97588712,4781.2,4781.1,1e-08]
[1756041587010,14.53587802,4781.2,4781.1,1e-08]
[1756041587604,13.97588712,4781.2,4781.1,1e-08]
[1756041587806,14.63588712,4781.2,4781.1,1e-08]
[1756041588400,15.38322193,4781.2,4781.1,1e-08]
[1756041588608,14.63588712,4781.2,4781.1,1e-08]
[1756041589604,14.30845003,4781.2,4781.1,1e-08]
[1756041590068,15.43736235,4781.2,4781.1,1e-08]
[1756041590509,14.30845003,4781.2,4781.1,1e-08]
[1756041591613,2.75165638,4780.9,4779.8,0.02]
[1756041591811,10.88698444,4780.9,4779.8,0.02]
[1756041592112,11.33898444,4780.9,4779.8,0.02]
[1756041592511,12.45982633,4780.9,4779.8,0.02]
[1756041592683,19.35026665,4780.9,4779.8,0.02]
[1756041593486,18.22942476,4780.9,4779.8,0.02]
[1756041593794,13.25662476,4780.9,4780.8,0.3328]
[1756041594122,10.34134606,4780.9,4780.8,0.3328]
[1756041594286,7.34134606,4780.9,4780.8,0.7608]
[1756041594701,0.77834609,4780.9,4780.8,0.7608]
[1756041596816,0.77834609,4780.9,4780.8,2.85250013]
[1756041596982,0.32744035,4780.9,4780.8,3.34702782]
[1756041598117,0.77834609,4780.9,4780.8,3.34702782]
[1756041598415,0.77834609,4780.9,4780.8,3.97590882]
[1756041599717,0.77834609,4780.9,4780.8,3.96490882]
[1756041599904,0.45090574,4780.9,4780.8,3.96490882]
[1756041600495,0.45090574,4780.9,4780.8,3.47038113]
[1756041602306,0.45090574,4780.9,4780.8,7.03138113]
[1756041602839,0.5610202,4781.5,4781.4,2.09143765]
[1756041602985,0.45070799,4781.5,4781.4,4.01323765]
[1756041603187,0.45070799,4782.1,4781.5,2.09137389]
[1756041603384,0.002,4782.2,4782.1,2.40393151]
[1756041603601,0.45245275,4782.2,4782.1,2.40393151]
[1756041603837,0.45245275,4782.2,4782.1,2.83193151]
[1756041603987,0.002,4782.2,4782.1,0.3128]
[1756041604188,0.45245275,4782.2,4782.1,4.438821]
[1756041604822,0.45245275,4782.2,4782.1,0.561021]
[1756041605236,0.002,4782.2,4782.1,3.39295251]
[1756041606712,0.002,4782.2,4782.1,4.29796777]
[1756041610450,0.002,4782.2,4782.1,7.86496777]
[1756041610742,0.002,4782.2,4782.1,8.62976777]
[1756041611449,1e-08,4782.2,4782.1,8.62976777]
[1756041613324,1e-08,4782.2,4782.1,11.62976777]
[1756041616640,1e-08,4782.2,4782.1,8.06276777]
[1756041616834,1e-08,4782.2,4782.1,11.62676777]
[1756041617721,1e-08,4782.2,4782.1,11.62476777]
[1756041618045,1e-08,4782.2,4782.1,8.62476777]
[1756041618247,1e-08,4782.2,4782.1,11.62476777]
[1756041620963,1e-08,4782.2,4782.1,8.06276777]
[1756041621118,1e-08,4782.2,4782.1,11.19476777]
[1756041621748,1e-08,4782.2,4782.1,11.64826777]
[1756041622262,1e-08,4782.2,4782.1,11.64926777]
[1756041622614,1e-08,4782.2,4782.1,11.19576777]
[1756041623016,0.7685,4785.8,4782.3,2.204]
[1756041623217,0.4461,4785.6,4784.7,2.85479519]
[1756041623456,1.77785577,4785.8,4784.7,7.96499519]
[1756041623457,0.3535,4784.8,4784.7,7.96499519]
[1756041623620,0.3535,4784.8,4784.7,7.30499519]
[1756041623934,0.7996,4784.8,4784.7,7.30499519]
[1756041624356,0.7996,4784.8,4784.7,7.93324919]
[1756041624648,0.04,4784.8,4784.7,8.90144919]
[1756041624945,0.04,4784.8,4784.7,10.00060128]
[1756041625848,0.04,4784.8,4784.7,9.69240128]
[1756041626060,0.7996,4784.8,4784.7,4.32624919]
[1756041626346,0.7996,4784.8,4784.7,7.93224919]
[1756041626875,0.7996,4784.8,4784.7,5.214]
[1756041627017,3.0,4784.7,4783.8,1.608]
[1756041627400,0.04,4784.8,4784.7,2.08999519]
[1756041627671,0.04,4784.8,4784.7,8.27419519]
[1756041628259,0.04,4784.8,4784.7,11.27419519]
[1756041628481,0.04,4784.8,4784.7,13.33451066]
[1756041628973,0.04,4784.8,4784.7,12.88101066]
[1756041630451,1.2166,4785.8,4785.3,5.74973314]
[1756041630452,0.7705,4785.8,4785.3,5.74973314]
[1756041630656,0.7705,4785.8,4785.3,9.68893314]
[1756041630855,0.3535,4785.4,4785.3,1.608]
[1756041631071,0.7996,4785.4,4785.3,7.33273314]
[1756041631289,0.7996,4785.4,4785.3,5.243]
[1756041631452,1e-08,4785.8,4785.7,2.74955847]
[1756041631654,1e-08,4785.8,4785.7,9.70375847]
[1756041631857,1e-08,4785.8,4785.7,9.39555847]
[1756041632448,0.31350001,4785.8,4785.7,5.74955847]
[1756041632648,0.31350001,4785.8,4785.7,10.53023269]
[1756041633082,0.31350001,4785.8,4785.7,8.73355847]
[1756041633277,0.31350001,4785.8,4785.7,5.73355847]
[1756041633663,0.75960001,4785.8,4785.7,5.73355847]
[1756041634063,0.31350001,4785.8,4785.7,2.08955847]
[1756041634264,1e-08,4785.8,4785.7,2.08955847]
[1756041634459,1e-08,4785.8,4785.7,5.73255847]
[1756041634853,1e-08,4786.4,4786.0,0.66]
[1756041635059,1e-08,4786.4,4786.3,3.05749653]
[1756041635257,1e-08,4786.4,4786.3,11.41729653]
[1756041635492,1e-08,4786.4,4786.3,11.95452153]
[1756041635701,1e-08,4786.4,4786.3,13.35891207]
[1756041635986,0.043,4787.4,4787.3,2.0888601]
[1756041636286,0.043,4787.4,4787.3,8.0028601]
[1756041636484,0.043,4787.4,4787.3,8.1076601]
[1756041636798,0.043,4787.4,4787.3,7.8937601]
[1756041637095,0.8026,4787.4,4787.3,7.8917601]
[1756041637283,0.8026,4787.4,4787.3,4.2467601]
[1756041637598,0.8026,4787.4,4787.3,1.607]
[1756041637885,0.8026,4787.4,4787.3,7.3418601]
[1756041638054,0.8026,4787.4,4787.3,5.253]
[1756041638254,0.8026,4787.4,4787.3,7.3418601]
[1756041639186,0.8026,4787.4,4787.3,7.3408601]
[1756041639986,0.8026,4787.4,4787.3,7.3388601]
[1756041640374,0.8026,4787.4,4787.3,1.607]
[1756041640575,1.37720708,4787.4,4787.3,5.251]
[1756041641966,1.37720708,4787.4,4787.3,5.25]
[1756041642700,1.37720708,4787.4,4787.3,5.249]
[1756041643194,1.93822728,4787.4,4787.3,5.249]
[1756041643693,1.37720708,4787.4,4787.3,5.249]
[1756041643909,0.49058825,4787.4,4787.3,7.6460601]
[1756041644059,0.043,4787.4,4787.3,7.7508601]
[1756041644268,0.043,4787.4,4787.3,8.3787551]
[1756041644482,0.043,4787.4,4787.3,9.0387551]
[1756041644666,0.043,4787.4,4787.3,10.81392234]
[1756041645099,0.043,4787.4,4787.3,13.81392234]
[1756041645310,1e-08,4787.4,4787.3,9.71842234]
[1756041645510,1e-08,4787.4,4787.3,13.36142234]
[1756041645670,1e-08,4787.4,4787.3,13.36042234]
[1756041645989,1e-08,4787.4,4787.3,9.71842234]
[1756041646196,1e-08,4787.4,4787.3,13.35942234]
[1756041646493,1e-08,4787.4,4787.3,9.71842234]
[1756041646696,1e-08,4787.4,4787.3,13.35942234]
[1756041647076,1e-08,4787.4,4787.3,13.35842234]
[1756041647667,1e-08,4787.4,4787.3,13.81192234]
[1756041648297,1e-08,4787.4,4787.3,13.35842234]
[1756041648503,1e-08,4787.4,4787.3,13.81192234]
[1756041650007,1e-08,4787.4,4787.3,13.35842234]
[1756041652712,1e-08,4787.4,4787.3,13.81952234]
[1756041653291,1e-08,4787.4,4787.3,13.35842234]
[1756041653491,1e-08,4787.4,4787.3,9.71842234]
[1756041653711,1e-08,4787.4,4787.3,13.35242234]
[1756041654519,1e-08,4787.4,4787.3,13.35042234]
[1756041654886,1e-08,4787.4,4787.3,9.71842234]
[1756041655209,1e-08,4787.4,4787.3,13.34842234]
[1756041655589,1e-08,4787.4,4787.3,13.34942234]
[1756041655785,0.00200001,4787.4,4787.3,9.41122234]
[1756041655994,0.31700001,4787.4,4787.3,13.03922234]
[1756041656423,0.31700001,4787.4,4787.3,9.41122234]
[1756041656589,0.31700001,4787.4,4787.3,6.41122234]
[1756041656789,0.77020001,4787.4,4787.3,4.3247551]
[1756041657018,0.77020001,4787.4,4787.3,7.3238601]
[1756041657351,0.00200001,4787.4,4787.3,8.2878601]
[1756041657690,0.00200001,4787.4,4787.3,8.3926601]
[1756041658022,0.00200001,4787.4,4787.3,8.1733771]
[1756041658325,0.77020001,4787.4,4787.3,7.3248601]
[1756041658635,1e-08,4789.1,4789.0,2.0881186]
[1756041658818,1.21768582,4789.1,4789.0,3.633]
[1756041658989,1.21768582,4789.1,4789.0,3.634]
[1756041660028,3.30576082,4789.1,4789.0,3.634]
[1756041660332,2.08834096,4788.5,4788.0,1.606]
[1756041660640,0.315,4788.1,4788.0,1.606]
[1756041660840,0.315,4788.1,4788.0,5.242]
[1756041660841,1.21768582,4788.1,4788.0,5.242]
[1756041661618,3.30619692,4788.1,4788.0,5.242]
[1756041661822,1.21768582,4788.1,4787.3,0.001]
[1756041662127,2.088671,4787.8,4787.4,3.634]
[1756041662296,0.315,4787.5,4787.4,3.634]
[1756041662500,0.76448582,4787.5,4787.4,3.634]
[1756041662710,1.21768582,4787.5,4787.4,3.634]
[1756041662910,3.30645866,4787.5,4787.4,3.634]
[1756041663111,6.84596946,4787.5,4787.4,3.634]
[1756041663345,6.84596946,4787.5,4787.3,0.001]
[1756041663346,2.08881647,4787.4,4787.3,3.636]
[1756041663525,1.21768582,4787.4,4787.3,3.636]
[1756041664111,3.30650229,4787.4,4787.3,0.001]
[1756041664332,3.30650229,4787.4,4787.3,3.636]
[1756041664547,3.84602706,4787.4,4787.3,3.636]
[1756041664922,3.84602706,4787.4,4787.3,0.001]
[1756041665332,0.315,4787.4,4787.3,0.001]
[1756041665507,2.08816308,4788.9,4787.8,2.08864196]
[1756041665709,0.4532,4788.3,4787.9,3.634]
[1756041665915,2.08816631,4788.9,4787.9,3.634]
[1756041665916,0.315,4788.0,4787.9,3.634]
[1756041666221,0.4532,4788.2,4788.1,2.0885111]
[1756041666423,0.7682,4788.2,4788.0,2.08851465]
[1756041666604,0.315,4788.2,4788.0,2.08851465]
[1756041666805,0.315,4788.2,4788.0,2.08855236]
[1756041667025,0.7682,4788.2,4787.9,5.72255923]
[1756041667232,0.7682,4788.2,4788.1,2.0885111]
[1756041667760,0.7682,4788.2,4787.8,0.02]
[1756041667899,0.315,4788.2,4787.9,3.633]
[1756041668251,0.4532,4788.1,4787.9,3.633]
[1756041668545,0.7682,4788.0,4787.9,3.633]
[1756041669048,0.4532,4788.6,4788.1,2.0884678]
[1756041669251,0.4532,4788.3,4788.2,3.631]
[1756041669705,0.7682,4788.3,4788.2,3.631]
[1756041670416,0.315,4788.3,4788.2,3.631]
[1756041670838,0.7682,4788.3,4788.2,5.71946748]
[1756041671046,0.7682,4788.3,4788.2,3.631]
[1756041672647,0.7682,4788.3,4787.8,0.02]
[1756041672848,2.08881647,4787.4,4787.2,3.626]
[1756041673059,0.315,4787.4,4786.8,0.021]
[1756041673208,2.85701647,4787.4,4786.9,3.627]
[1756041673407,3.35159149,4787.4,4786.9,3.627]
[1756041673803,3.80191695,4787.4,4786.9,3.627]
[1756041674701,3.80178935,4787.4,4786.9,3.627]
[1756041675207,3.35159149,4787.4,4786.8,3.647]
[1756041675403,6.80167709,4787.4,4786.8,0.021]
[1756041676042,6.80167709,4787.4,4787.0,0.001]
[1756041680328,6.35159149,4787.4,4787.0,0.001]
[1756041680729,6.80118565,4787.4,4787.0,0.001]
[1756041681328,6.35159149,4787.4,4787.0,0.001]
[1756041682338,9.96859149,4787.4,4787.0,0.001]
[1756041683857,6.35159149,4787.4,4787.0,0.001]
[1756041687030,9.96159149,4787.4,4787.0,0.001]
[1756041688590,16.52459146,4787.4,4787.0,0.001]
[1756041688734,16.97439297,4787.4,4787.0,0.001]
[1756041688940,13.36439297,4787.4,4787.0,0.001]
[1756041689171,16.97239297,4787.4,4787.0,0.001]
[1756041689873,18.57939297,4787.4,4787.0,0.001]
[1756041690040,19.32906215,4787.4,4787.0,0.001]
[1756041690739,19.32906215,4787.4,4787.3,1e-08]
[1756041691437,15.72106215,4787.4,4787.3,1e-08]
[1756041691638,19.32806215,4787.4,4787.3,1e-08]
[1756041693152,2.08903465,4786.9,4786.8,1e-08]
[1756041693353,9.00453465,4786.9,4786.8,1e-08]
[1756041693678,9.92673616,4786.9,4786.8,1e-08]
[1756041694564,10.25375679,4786.9,4786.8,1e-08]
[1756041696071,16.81675676,4786.9,4786.8,1e-08]
[1756041696262,17.23143424,4786.9,4786.8,1e-08]
[1756041696866,2.08925288,4786.4,4786.3,1e-08]
[1756041697084,17.62455436,4786.4,4786.3,1e-08]
[1756041697263,2.08947115,4785.9,4785.8,1e-08]
[1756041697463,9.95934768,4785.9,4785.8,1e-08]
[1756041697697,10.37894768,4785.9,4785.8,1e-08]
[1756041698397,6.29354768,4785.9,4785.8,1e-08]
[1756041698574,9.59404768,4785.9,4785.8,0.30940001]
[1756041698775,9.59404768,4785.9,4785.8,1e-08]
[1756041698972,10.23360295,4785.9,4785.8,1e-08]
[1756041699784,10.70600295,4785.9,4785.8,1e-08]
[1756041700699,10.37894768,4785.9,4785.8,1e-08]
[1756041701290,10.37794768,4785.9,4785.8,1e-08]
[1756041702278,14.07872636,4785.9,4785.8,1e-08]
[1756041702491,13.29382636,4785.9,4785.8,1e-08]
[1756041702801,16.15604765,4785.9,4785.8,1e-08]
[1756041703195,16.46854765,4785.9,4785.8,1e-08]
[1756041703499,16.94094765,4785.9,4785.8,1e-08]
[1756041703903,17.26801864,4785.9,4785.8,1e-08]
[1756041705401,18.01779735,4785.9,4785.8,1e-08]
[1756041705704,17.26801864,4785.9,4785.8,1e-08]
[1756041706229,17.26601864,4785.9,4785.8,1e-08]
[1756041707504,13.65601864,4785.9,4785.8,1e-08]
[1756041707710,17.26501864,4785.9,4785.8,1e-08]
[1756041708322,17.26401864,4785.9,4785.8,1e-08]
[1756041709102,17.60187457,4785.9,4785.8,1e-08]
[1756041709732,13.66780358,4785.9,4785.8,1e-08]
[1756041709912,17.27480358,4785.9,4785.8,1e-08]
[1756041710099,13.66780358,4785.9,4785.8,0.30940001]
[1756041710309,16.15004765,4785.9,4785.8,0.30940001]
[1756041711244,16.89919463,4785.9,4785.8,0.30940001]
[1756041711413,16.15004765,4785.9,4785.8,0.30940001]
[1756041711618,16.15004765,4785.9,4785.8,1e-08]
[1756041711814,16.46254765,4785.9,4785.8,1e-08]
[1756041712132,16.92414765,4785.9,4785.8,1e-08]
[1756041713044,17.25123107,4785.9,4785.8,1e-08]
[1756041713640,16.77973107,4785.9,4785.8,1e-08]
[1756041714014,16.78473107,4785.9,4785.8,1e-08]
[1756041714620,13.17373107,4785.9,4785.8,1e-08]
[1756041714947,16.48013107,4785.9,4785.8,1e-08]
[1756041715319,16.78273107,4785.9,4785.8,1e-08]
[1756041715915,17.22907253,4785.9,4785.8,0.29280001]
[1756041716143,15.98455605,4785.9,4785.8,0.29280001]
[1756041716349,15.98355605,4785.9,4785.8,0.29280001]
[1756041717451,16.73349751,4785.9,4785.8,0.29280001]
[1756041718357,15.98355605,4785.9,4785.8,0.29280001]
[1756041718553,16.73453187,4785.9,4785.8,0.29280001]
[1756041718754,18.72929903,4785.9,4785.8,0.29280001]
[1756041719157,17.97832321,4785.9,4785.8,0.29280001]
[1756041719326,18.72929903,4785.9,4785.8,0.29280001]
[1756041719753,18.40221561,4785.9,4785.8,0.29280001]
[1756041720954,12.85324845,4785.9,4785.8,0.29280001]
[1756041721153,16.26697568,4785.9,4785.8,0.75140001]
[1756041721577,16.26697568,4785.9,4785.8,0.29280001]
[1756041721828,16.26697568,4785.9,4785.8,1e-08]
[1756041722034,16.56957568,4785.9,4785.8,1e-08]
[1756041722247,19.2164924,4785.9,4785.8,1e-08]
[1756041722575,19.72251658,4785.9,4785.8,1e-08]
[1756041722877,2.08990783,4784.9,4784.8,0.021]
[1756041723059,15.70470931,4784.9,4784.8,0.021]
[1756041723269,16.59590447,4784.9,4784.8,0.021]
[1756041723471,17.24401545,4784.9,4784.8,0.021]
[1756041724148,10.68101548,4784.9,4784.8,0.021]
[1756041724741,10.68101548,4784.9,4784.8,0.3138]
[1756041724936,10.11693299,4784.9,4784.8,0.021]
[1756041725979,10.86904298,4784.9,4784.8,0.021]
[1756041726264,10.11693299,4784.9,4784.8,0.021]
[1756041726991,10.11693299,4784.9,4784.8,0.3138]
[1756041727497,6.51493299,4784.9,4784.8,0.3138]
[1756041727697,10.11293299,4784.9,4784.8,0.3138]
[1756041728284,10.11293299,4784.9,4784.8,0.021]
[1756041729759,10.10993299,4784.9,4784.8,0.021]
[1756041730807,10.41428177,4784.9,4784.8,0.021]
[1756041731911,10.88578177,4784.9,4784.8,0.021]
[1756041732088,10.41428177,4784.9,4784.8,0.021]
[1756041733095,10.0871691,4784.9,4784.8,0.021]
[1756041733687,10.5586691,4784.9,4784.8,0.021]
[1756041734190,10.0871691,4784.9,4784.8,0.021]
[1756041734403,10.5586691,4784.9,4784.8,0.021]
[1756041734803,9.7845691,4784.9,4784.8,0.021]
[1756041735314,10.5586691,4784.9,4784.8,0.021]
[1756041735739,12.94383409,4784.9,4784.8,0.021]
[1756041735924,13.13980323,4784.9,4784.8,0.021]
[1756041736526,1.257,4784.6,4784.3,0.001]
[1756041736826,6.14516524,4784.4,4784.3,0.001]
[1756041737040,8.4258906,4784.4,4784.3,0.001]
[1756041737190,9.97273209,4784.4,4784.3,1e-08]
[1756041737749,2.09034469,4783.9,4783.8,0.02]
[1756041738035,11.24952945,4783.9,4783.8,0.021]
[1756041738203,11.72102945,4783.9,4783.8,0.021]
[1756041738398,12.04825749,4783.9,4783.8,0.021]
[1756041738598,12.20519005,4783.9,4783.8,0.021]
[1756041738798,13.46219005,4783.9,4783.8,0.021]
[1756041739800,14.45880144,4783.9,4783.8,0.021]
[1756041740301,13.13496201,4783.9,4783.8,0.021]
[1756041741635,11.40346201,4783.9,4783.8,0.021]
[1756041742214,12.5864579,4783.9,4783.8,0.021]
[1756041742404,8.5686579,4783.9,4783.8,0.021]
[1756041742743,11.8500579,4783.9,4783.8,0.021]
[1756041742944,12.17730252,4783.9,4783.8,0.021]
[1756041743239,12.17730252,4783.9,4783.8,0.313]
[1756041743532,17.83317404,4783.9,4783.8,0.313]
[1756041743846,18.57307404,4783.9,4783.8,0.021]
[1756041744034,18.14027404,4783.9,4783.8,0.021]
[1756041744207,18.2933606,4783.9,4783.8,0.021]
[1756041744531,17.9862606,4783.9,4783.8,0.021]
[1756041745111,14.24917404,4783.9,4783.8,0.313]
[1756041745316,17.83317404,4783.9,4783.8,0.313]
[1756041745715,17.83217404,4783.9,4783.8,0.313]
[1756041746414,18.39435353,4783.9,4783.8,0.313]
[1756041746620,14.24917404,4783.9,4783.8,0.7537]
[1756041746816,10.92479488,4783.9,4783.8,0.7537]
[1756041747031,7.34179488,4783.9,4783.8,0.7537]
[1756041747549,9.89024459,4783.9,4783.8,0.7537]
[1756041747760,6.89024459,4783.9,4783.8,0.7537]
[1756041748150,9.89024459,4783.9,4783.8,0.7537]
[1756041748463,6.89024459,4783.9,4783.8,2.84408839]
[1756041748838,6.56299997,4783.9,4783.8,0.7537]
[1756041749838,6.56299997,4783.9,4783.8,0.313]
[1756041750461,5.09034469,4783.9,4783.8,0.313]
[1756041750959,3.0,4783.9,4783.8,0.313]
[1756041751855,3.0,4783.9,4783.8,0.7537]
[1756041753355,0.56217949,4784.9,4783.8,0.7537]
[1756041753559,3.582,4784.8,4784.1,2.09025432]
[1756041753860,0.32715709,4784.4,4783.8,0.021]
[1756041754046,0.32715709,4784.4,4784.2,0.4407]
[1756041754248,0.32715709,4784.4,4784.3,0.292]
[1756041754445,0.45023865,4785.2,4784.8,2.08992715]
[1756041754638,0.45023865,4785.2,4785.1,0.292]
[1756041754835,0.77734171,4785.3,4785.1,0.292]
[1756041757252,0.32710306,4785.3,4785.1,0.292]
[1756041758169,0.32910306,4785.3,4785.1,0.292]